bitfinex/quotes_BTCUSD_20220304
["timestamp","ask_amount","ask_price","bid_price","bid_amount"]
[1646413876256,0.122291,40926.0,40923.0,0.31451268]
[1646413876457,0.05,40925.0,40918.0,0.422271]
[1646413876658,0.05,40925.0,40918.0,0.122271]
[1646413877059,0.1225147,40926.0,40922.0,0.25750296]
[1646413877461,0.061144,40924.0,40922.0,0.49686216]
[1646413877659,0.061144,40924.0,40922.0,0.2393592]
[1646413878312,0.05,40925.0,40922.0,0.2393592]
[1646413878605,0.0002237,40926.0,40922.0,0.6004962]
[1646413879103,0.0002237,40926.0,40922.0,0.2393592]
[1646413879303,0.05,40927.0,40922.0,0.2393592]
[1646413879503,0.0002237,40926.0,40922.0,0.2393592]
[1646413879705,0.0002237,40926.0,40922.0,0.50896672]
[1646413879906,0.0002237,40926.0,40922.0,0.66163574]
[1646413880109,0.0002237,40926.0,40922.0,0.2393592]
[1646413880306,0.0002237,40926.0,40921.0,0.12227553]
[1646413880504,0.061141,40927.0,40921.0,0.12227553]
[1646413880705,0.061141,40927.0,40916.0,0.12229011]
[1646413880706,0.0002237,40926.0,40916.0,0.12229011]
[1646413880916,0.0002237,40926.0,40910.0,0.4784]
[1646413880917,0.061154,40925.0,40910.0,0.4784]
[1646413881106,0.061156,40921.0,40916.0,0.06115034]
[1646413881307,0.282554,40925.0,40918.0,0.26319984]
[1646413881756,0.282554,40925.0,40911.0,0.3]
[1646413881958,0.282554,40925.0,40913.0,0.20121899]
[1646413882357,0.282554,40925.0,40913.0,0.32351099]
[1646413882558,0.061146,40924.0,40917.0,0.12229361]
[1646413882761,0.07566553,40924.0,40918.0,0.3]
[1646413882959,0.282554,40925.0,40923.0,0.25435835]
[1646413882960,0.05,40925.0,40923.0,0.25435835]
[1646413883162,0.05,40925.0,40919.0,0.3]
[1646413883361,0.05,40925.0,40913.0,0.08777015]
[1646413883362,0.01769164,40926.0,40918.0,0.05]
[1646413883561,0.01769164,40926.0,40919.0,0.3]
[1646413883760,0.01769164,40926.0,40920.0,0.31828458]
[1646413884163,0.01747717,40926.0,40920.0,0.31828458]
[1646413884460,0.01769164,40926.0,40922.0,0.18341931]
[1646413884660,0.061146,40925.0,40918.0,0.05]
[1646413884861,0.160246,40925.0,40918.0,0.05]
[1646413885061,0.20389487,40924.0,40918.0,0.05]
[1646413885307,0.0491,40923.0,40918.0,0.05]
[1646413885705,0.01427291,40922.0,40918.0,0.05]
[1646413885907,0.01417139,40921.0,40918.0,0.05]
[1646413886104,0.01350704,40920.0,40918.0,0.05]
[1646413886305,0.160258,40922.0,40918.0,0.05]
[1646413886904,0.35940408,40922.0,40918.0,0.05]
[1646413888305,0.160258,40922.0,40918.0,0.05]
[1646413889457,0.15462422,40919.0,40918.0,0.05]
[1646413889655,0.0491,40919.0,40918.0,0.05]
[1646413890655,0.24183973,40919.0,40918.0,0.05]
[1646413891054,0.24183973,40919.0,40909.0,0.12231884]
[1646413891055,0.122336,40917.0,40909.0,0.12231884]
[1646413891260,0.25551492,40915.0,40898.0,2.40312325]
[1646413891456,0.0491,40914.0,40907.0,0.00020845]
[1646413891655,0.19594661,40912.0,40907.0,0.00020845]
[1646413891855,0.0491,40911.0,40907.0,0.00020845]
[1646413892255,0.171453,40911.0,40907.0,0.00020845]
[1646413892455,0.171453,40911.0,40905.0,0.24399442]
[1646413892656,0.171453,40911.0,40907.0,0.00020827]
[1646413892902,0.0491,40911.0,40907.0,0.1225349]
[1646413893502,0.11027,40911.0,40907.0,0.1225349]
[1646413893703,0.0491,40911.0,40908.0,0.21086257]
[1646413894704,0.0491,40911.0,40907.0,0.1225349]
[1646413894905,0.0491,40911.0,40905.0,0.05]
[1646413895105,0.0491,40911.0,40907.0,0.00020827]
[1646413895309,0.06222985,40908.0,40907.0,0.00020827]
[1646413895506,1.35,40907.0,40890.0,0.3]
[1646413895710,0.06222985,40905.0,40890.0,0.20517839]
[1646413895906,0.0491,40904.0,40891.0,0.3]
[1646413896105,0.122391,40903.0,40889.0,0.06118991]
[1646413896305,0.122391,40903.0,40887.0,0.51015197]
[1646413896306,0.21710933,40902.0,40890.0,0.3]
[1646413896555,0.01343824,40901.0,40890.0,0.3]
[1646413896758,0.0623923,40900.0,40891.0,0.22073458]
[1646413896955,0.061196,40898.0,40890.0,0.3]
[1646413897155,0.28836755,40897.0,40890.0,0.3]
[1646413897357,0.28836755,40897.0,40887.0,0.3]
[1646413897556,0.28836755,40897.0,40886.0,8.32665974]
[1646413897756,0.38836755,40897.0,40886.0,8.32665974]
[1646413897957,0.061206,40894.0,40886.0,8.32665974]
[1646413898157,0.06393889,40893.0,40886.0,8.32665974]
[1646413898362,0.07609946,40892.0,40886.0,8.32665974]
[1646413898558,0.0491,40891.0,40887.0,0.25715431]
[1646413898758,0.0991,40891.0,40887.0,0.25715431]
[1646413899159,0.160304,40891.0,40887.0,0.25715431]
[1646413899965,0.160304,40891.0,40887.0,0.25737816]
[1646413900160,0.160304,40891.0,40887.0,0.00022385]
[1646413900808,0.160304,40891.0,40886.0,8.54489671]
[1646413901211,0.160304,40891.0,40889.0,0.27670389]
[1646413901608,0.160304,40891.0,40887.0,0.00022385]
[1646413902210,0.160304,40891.0,40886.0,8.54489671]
[1646413902409,0.160304,40891.0,40887.0,0.00022385]
[1646413904460,0.160304,40891.0,40886.0,8.32665974]
[1646413904660,0.160304,40891.0,40887.0,0.00021462]
[1646413905660,0.160304,40891.0,40886.0,8.32665974]
[1646413905862,0.160304,40891.0,40887.0,0.00021462]
[1646413906860,0.160304,40891.0,40886.0,8.32665974]
[1646413908310,0.160304,40891.0,40886.0,8.32686851]
[1646413908711,0.03468646,40894.0,40886.0,8.32686851]
[1646413908907,0.0245,40891.0,40886.0,8.32686851]
[1646413909109,0.06379308,40890.0,40886.0,8.32686851]
[1646413909311,0.183624,40888.0,40886.0,8.32665974]
[1646413909511,0.04657355,40889.0,40887.0,0.3652393]
[1646413909714,0.21830346,40894.0,40888.0,0.3]
[1646413909715,0.183617,40894.0,40888.0,0.3]
[1646413910011,0.01425478,40893.0,40889.0,0.49564847]
[1646413910210,0.01680932,40892.0,40889.0,0.49564847]
[1646413910410,0.01484399,40891.0,40889.0,0.49564847]
[1646413910611,0.01484399,40891.0,40890.0,0.3]
[1646413910811,0.061195,40892.0,40890.0,0.3]
[1646413911014,0.01327468,40891.0,40890.0,0.3]
[1646413911217,0.061195,40892.0,40890.0,0.3]
[1646413911676,0.070989,40892.0,40890.0,0.3]
[1646413911878,0.070989,40892.0,40889.0,0.58363089]
[1646413912176,0.061195,40892.0,40889.0,0.49586074]
[1646413912374,0.061195,40892.0,40889.0,0.54586074]
[1646413912976,0.061195,40892.0,40889.0,0.54564847]
[1646413913378,0.061194,40893.0,40890.0,0.3]
[1646413913577,0.1623,40908.0,40901.0,0.23996865]
[1646413913782,0.53867593,40909.0,40895.0,0.08777015]
[1646413913783,0.122366,40904.0,40895.0,0.08777015]
[1646413913981,0.122366,40904.0,40896.0,0.3]
[1646413914377,0.122366,40904.0,40897.0,0.29764481]
[1646413914579,0.061183,40901.0,40897.0,0.29764481]
[1646413914779,0.122366,40901.0,40897.0,0.00021224]
[1646413915306,0.122366,40901.0,40897.0,0.16046895]
[1646413915506,0.122366,40901.0,40898.0,0.23458661]
[1646413915710,0.172366,40901.0,40898.0,0.28458661]
[1646413917008,0.167366,40901.0,40898.0,0.28458661]
[1646413917208,0.079732,40904.0,40898.0,0.28458661]
[1646413917808,0.122368,40903.0,40902.0,0.1618783]
[1646413918010,0.122368,40903.0,40902.0,0.2118783]
[1646413918414,0.025,40910.0,40902.0,0.5118783]
[1646413918610,0.025,40910.0,40904.0,0.08777015]
[1646413918809,0.2312865,40915.0,40905.0,0.3]
[1646413919061,0.2312865,40915.0,40907.0,0.08777015]
[1646413919258,0.2312865,40915.0,40909.0,0.27481127]
[1646413919459,0.061163,40914.0,40909.0,0.27481127]
[1646413919664,0.4147805,40915.0,40909.0,0.33597049]
[1646413919665,0.2312865,40915.0,40909.0,0.33597049]
[1646413919963,0.00020758,40919.0,40909.0,0.33597049]
[1646413920160,0.03479,40923.0,40909.0,0.33597049]
[1646413920360,0.061157,40917.0,40909.0,0.33597049]
[1646413920561,0.061157,40917.0,40911.0,0.08777015]
[1646413920762,0.03479,40923.0,40915.0,0.08777015]
[1646413921061,0.04458182,40928.0,40917.0,0.06114827]
[1646413921258,0.04458182,40928.0,40918.0,0.08777015]
[1646413921460,0.0130196,40926.0,40920.0,0.26998407]
[1646413921663,0.00020755,40925.0,40920.0,0.26998407]
[1646413921860,0.01671359,40924.0,40920.0,0.26998407]
[1646413922059,0.00020755,40925.0,40920.0,0.26998407]
[1646413922260,0.01586636,40922.0,40920.0,0.26998407]
[1646413922460,0.122301,40927.0,40920.0,0.26998407]
[1646413922461,0.01709933,40921.0,40920.0,0.26998407]
[1646413922663,0.122301,40926.0,40920.0,0.26998407]
[1646413922930,0.00020756,40923.0,40919.0,0.20709034]
[1646413923329,0.00020756,40923.0,40919.0,0.05]
[1646413923526,0.00020756,40923.0,40918.0,0.13777015]
[1646413923726,0.061146,40925.0,40918.0,0.05]
[1646413923931,0.01958182,40928.0,40922.0,0.08777015]
[1646413924127,0.01958182,40928.0,40922.0,0.21004194]
[1646413924128,0.00020756,40923.0,40922.0,0.21004194]
[1646413924333,0.00020756,40923.0,40922.0,0.42952595]
[1646413924929,0.01958182,40928.0,40923.0,0.0749781]
[1646413925129,0.01958182,40928.0,40927.0,0.08777015]
[1646413925328,0.01738182,40928.0,40927.0,0.13777015]
[1646413925527,0.01038182,40928.0,40927.0,0.77485178]
[1646413925729,0.00818182,40928.0,40927.0,0.40680278]
[1646413926028,0.00378182,40928.0,40927.0,0.73034819]
[1646413927160,0.003546,40931.0,40928.0,1.35]
[1646413927362,0.003185,40934.0,40932.0,1.35]
[1646413927562,0.0021,40935.0,40933.0,0.38777015]
[1646413927761,0.0021,40935.0,40934.0,0.3]
[1646413927962,0.0511,40947.0,40936.0,1.35]
[1646413928164,0.0511,40947.0,40939.0,0.5267728]
[1646413928367,0.03787058,40947.0,40944.0,0.85]
[1646413928563,0.0011,40947.0,40942.0,0.08777015]
[1646413928763,0.0011,40947.0,40943.0,0.3]
[1646413928966,0.0011,40947.0,40944.0,0.58751843]
[1646413929164,2.001,40952.0,40944.0,0.58751843]
[1646413929372,2.001,40952.0,40948.0,0.45581915]
[1646413929373,0.0032,40949.0,40948.0,0.45581915]
[1646413929569,0.00143058,40957.0,40948.0,0.45581915]
[1646413929570,0.0011,40966.0,40954.0,1.35]
[1646413929869,0.0011,40966.0,40959.0,1.35]
[1646413930069,0.01818182,40960.0,40959.0,1.35]
[1646413930507,0.01818182,40960.0,40959.0,0.05]
[1646413930706,0.00818182,40960.0,40959.0,0.05]
[1646413930909,0.00318182,40960.0,40959.0,0.05]
[1646413931306,0.00318182,40960.0,40958.0,0.001]
[1646413931505,0.00318182,40960.0,40958.0,0.00030631]
[1646413932303,0.00318182,40960.0,40955.0,0.05]
[1646413932504,0.00318182,40960.0,40954.0,0.35]
[1646413932705,0.12537182,40960.0,40956.0,0.06109253]
[1646413932905,0.01522145,40959.0,40956.0,0.06109253]
[1646413933506,0.1918575,40960.0,40956.0,0.06109253]
[1646413933807,0.014919,40959.0,40956.0,0.06109253]
[1646413934260,0.314919,40959.0,40953.0,0.12218583]
[1646413934463,0.314919,40959.0,40944.0,0.165]
[1646413934464,0.061108,40957.0,40948.0,0.12220559]
[1646413934665,0.12662579,40958.0,40948.0,0.12220559]
[1646413934666,0.22177523,40951.0,40948.0,0.12220559]
[1646413934862,0.12481938,40954.0,40948.0,0.12220559]
[1646413935061,0.12793574,40954.0,40949.0,0.28844296]
[1646413935260,0.111108,40954.0,40949.0,0.0569898]
[1646413935461,0.05,40954.0,40949.0,0.0569898]
[1646413935761,0.061103,40953.0,40949.0,0.0569898]
[1646413936160,0.061103,40953.0,40949.0,0.05]
[1646413936762,0.00020733,40954.0,40950.0,0.061097]
[1646413937062,0.004,40956.0,40950.0,0.061097]
[1646413937266,0.004,40956.0,40949.0,0.11110265]
[1646413937267,0.00020849,40953.0,40949.0,0.18048134]
[1646413937666,0.00020849,40953.0,40950.0,0.08777015]
[1646413938211,0.122207,40955.0,40950.0,0.13777015]
[1646413938511,0.122207,40955.0,40950.0,0.05]
[1646413938512,0.32771916,40954.0,40950.0,0.05]
[1646413938708,0.32771916,40954.0,40948.0,0.12220559]
[1646413938709,0.32771916,40954.0,40949.0,0.05]
[1646413938908,0.32271916,40954.0,40949.0,0.05]
[1646413939108,0.0611,40954.0,40949.0,0.11110222]
[1646413939308,0.0611,40954.0,40950.0,0.16775052]
[1646413939508,0.0611,40954.0,40949.0,0.11110222]
[1646413939707,0.43943886,40955.0,40949.0,0.11110222]
[1646413939708,0.006,40955.0,40951.0,0.13777015]
[1646413940109,0.01548017,40954.0,40951.0,0.13777015]
[1646413940310,0.01340604,40953.0,40951.0,0.13777015]
[1646413940507,0.01499483,40952.0,40951.0,0.13777015]
[1646413940707,0.005,40958.0,40951.0,0.13777015]
[1646413940909,0.066093,40958.0,40953.0,0.06109616]
[1646413941309,0.116093,40958.0,40953.0,0.06109616]
[1646413941556,0.111093,40958.0,40953.0,0.06109616]
[1646413941960,0.10630139,40958.0,40953.0,0.06109616]
[1646413942158,0.06130139,40958.0,40953.0,0.06109616]
[1646413942961,0.061093,40958.0,40953.0,0.06109616]
[1646413943260,0.06130139,40958.0,40953.0,0.06109616]
[1646413944160,0.061093,40958.0,40953.0,0.06109616]
[1646413944362,0.061093,40958.0,40954.0,0.3]
[1646413944363,0.06130139,40958.0,40954.0,0.3]
[1646413944562,0.06130139,40958.0,40953.0,0.06109616]
[1646413944762,0.01664859,40959.0,40954.0,0.05]
[1646413944962,0.06547821,40961.0,40954.0,0.05]
[1646413944963,0.0131051,40958.0,40954.0,0.05]
[1646413945165,0.006,40961.0,40953.0,0.11109616]
[1646413945411,0.01793201,40957.0,40953.0,0.11109616]
[1646413945617,0.23192728,40954.0,40953.0,0.11109616]
[1646413945812,0.02373821,40961.0,40953.0,0.11109616]
[1646413946013,0.50041421,40958.0,40953.0,0.11109616]
[1646413946214,0.23166316,40958.0,40954.0,0.05]
[1646413946412,0.061093,40958.0,40954.0,0.05]
[1646413946610,0.061093,40958.0,40953.0,0.06109616]
[1646413947014,0.27257269,40957.0,40953.0,0.06109616]
[1646413947213,0.40781867,40957.0,40953.0,0.06109616]
[1646413947414,0.01439577,40956.0,40953.0,0.06109616]
[1646413947615,0.01707751,40956.0,40953.0,0.06109616]
[1646413947818,0.33367069,40957.0,40953.0,0.06109616]
[1646413948016,0.34910538,40957.0,40953.0,0.06109616]
[1646413948415,0.07653269,40957.0,40953.0,0.06109616]
[1646413948615,0.01383431,40956.0,40953.0,0.06109616]
[1646413948818,0.01338473,40956.0,40953.0,0.06109616]
[1646413949068,0.051098,40957.0,40953.0,0.06109616]
[1646413949470,0.26192462,40955.0,40953.0,0.06109616]
[1646413950267,0.051098,40957.0,40953.0,0.06109616]
[1646413951167,0.21329404,40956.0,40953.0,0.06109616]
[1646413951769,0.100198,40957.0,40953.0,0.06109616]
[1646413952169,0.051098,40957.0,40953.0,0.06109616]
[1646413953813,0.25735982,40954.0,40953.0,0.06109616]
[1646413954011,0.051098,40957.0,40953.0,0.06109616]
[1646413956211,0.22458738,40955.0,40953.0,0.06109616]
[1646413956662,0.12458738,40955.0,40953.0,0.06109616]
[1646413957062,0.056098,40957.0,40953.0,0.06109616]
[1646413957960,0.051098,40957.0,40953.0,0.06109616]
[1646413959966,0.051098,40957.0,40953.0,0.40606754]
[1646413960166,0.06130296,40960.0,40958.0,0.17231729]
[1646413960412,0.06130296,40960.0,40959.0,0.27855084]
[1646413960614,0.06130296,40960.0,40957.0,0.08777015]
[1646413960820,0.06130296,40960.0,40957.0,0.13777015]
[1646413961113,0.061088,40960.0,40957.0,0.13777015]
[1646413961312,0.061088,40960.0,40957.0,0.32366263]
[1646413961714,0.061088,40960.0,40957.0,0.62366263]
[1646413962215,0.061088,40960.0,40957.0,0.32366263]
[1646413962415,0.061088,40960.0,40957.0,0.62366263]
[1646413963115,0.061088,40960.0,40957.0,0.13777015]
[1646413963518,0.061088,40960.0,40957.0,0.05]
[1646413963717,0.061088,40960.0,40956.0,0.05]
[1646413963918,0.061088,40960.0,40954.0,0.35]
[1646413964174,0.061088,40960.0,40955.0,0.06109901]
[1646413964378,0.061088,40960.0,40955.0,0.14886916]
[1646413964575,0.061088,40960.0,40955.0,0.46821233]
[1646413964780,0.06130563,40960.0,40955.0,0.46821233]
[1646413964978,0.06130563,40960.0,40955.0,0.11109901]
[1646413965779,0.061088,40960.0,40955.0,0.11109901]
[1646413965981,0.06131272,40960.0,40955.0,0.11109901]
[1646413966980,0.061088,40960.0,40955.0,0.11109901]
[1646413967180,0.06131272,40960.0,40955.0,0.11109901]
[1646413967382,0.2339236,40960.0,40955.0,0.11109901]
[1646413967581,0.06131272,40960.0,40955.0,0.11109901]
[1646413967806,0.061096,40957.0,40955.0,0.11109901]
[1646413968610,0.00022472,40960.0,40955.0,0.11109901]
[1646413969408,0.0175173,40963.0,40955.0,0.11109901]
[1646413969611,0.00022489,40960.0,40955.0,0.11109901]
[1646413969812,0.00022489,40960.0,40956.0,0.42217793]
[1646413970007,0.01674219,40963.0,40956.0,0.48326617]
[1646413970210,0.01674219,40963.0,40957.0,0.05]
[1646413970408,0.00159547,40963.0,40957.0,0.05]
[1646413970609,0.00159547,40963.0,40956.0,0.3]
[1646413970610,0.00159547,40963.0,40959.0,0.08777015]
[1646413970808,0.00159547,40963.0,40959.0,0.13777015]
[1646413971010,0.00159547,40963.0,40959.0,0.05]
[1646413971312,0.00159547,40963.0,40960.0,0.08777015]
[1646413971562,0.061086,40962.0,40960.0,0.08777015]
[1646413971762,0.061086,40962.0,40960.0,0.05]
[1646413972163,0.061086,40962.0,40958.0,0.35]
[1646413972361,0.061086,40962.0,40960.0,0.06108904]
[1646413972861,0.061086,40962.0,40960.0,0.14885919]
[1646413973261,0.061086,40962.0,40960.0,0.19885919]
[1646413973663,0.29921022,40962.0,40960.0,0.11108904]
[1646413973866,0.061086,40962.0,40960.0,0.11108904]
[1646413974664,0.061086,40962.0,40946.0,0.30546629]
[1646413974665,0.3491,40961.0,40946.0,0.30546629]
[1646413974867,0.061108,40957.0,40946.0,0.18328229]
[1646413975064,0.47244085,40956.0,40939.0,0.00022501]
[1646413975330,0.47244085,40956.0,40942.0,0.12222622]
[1646413975331,0.1,40955.0,40942.0,0.12222622]
[1646413975527,0.344505,40955.0,40939.0,0.00022498]
[1646413975728,0.23154201,40949.0,40939.0,0.00022498]
[1646413975928,0.69264959,40948.0,40939.0,0.00022498]
[1646413976128,0.01503299,40947.0,40939.0,0.00022498]
[1646413976328,0.110225,40946.0,40939.0,0.00022498]
[1646413976535,0.110225,40946.0,40927.0,0.159]
[1646413976728,0.110225,40946.0,40933.0,0.08777015]
[1646413977127,0.160225,40946.0,40933.0,0.08777015]
[1646413977428,0.01463297,40941.0,40932.0,0.26800793]
[1646413977729,0.06479747,40940.0,40932.0,0.35577808]
[1646413978029,0.061136,40938.0,40934.0,0.00021546]
[1646413978230,0.061141,40935.0,40934.0,0.00021546]
[1646413978429,0.12793677,40935.0,40934.0,0.00021546]
[1646413978930,0.12793677,40935.0,40933.0,0.25987656]
[1646413979176,0.06679577,40935.0,40932.0,0.00021547]
[1646413979372,0.061137,40934.0,40932.0,0.00021547]
[1646413979573,0.0491,40933.0,40932.0,0.00021547]
[1646413979972,0.05773513,40933.0,40932.0,0.00021547]
[1646413980171,0.05773513,40933.0,40931.0,0.31775056]
[1646413980371,0.04647806,40932.0,40931.0,0.31775056]
[1646413980574,0.0491,40932.0,40931.0,0.73579956]
[1646413980775,0.0491,40932.0,40931.0,0.94721818]
[1646413981073,0.061121,40937.0,40931.0,0.94721818]
[1646413981275,0.006,40939.0,40931.0,0.94721818]
[1646413981276,0.006,40939.0,40936.0,0.45581915]
[1646413981679,0.006,40939.0,40936.0,0.56693536]
[1646413982275,0.01615473,40945.0,40940.0,0.26632203]
[1646413982917,0.06111,40945.0,40940.0,0.11110857]
[1646413983316,0.06111,40945.0,40940.0,0.05]
[1646413983716,0.06111,40945.0,40939.0,0.13797843]
[1646413983916,0.06111,40945.0,40940.0,0.3272983]
[1646413984116,0.06111,40945.0,40941.0,0.368049]
[1646413984321,0.06111,40945.0,40942.0,0.06111016]
[1646413984518,0.06111,40945.0,40942.0,0.11111016]
[1646413985218,0.07535833,40948.0,40943.0,0.368049]
[1646413985417,0.061106,40948.0,40943.0,0.3]
[1646413986020,0.0150997,40949.0,40947.0,0.29036392]
[1646413986217,0.005,40951.0,40947.0,0.29036392]
[1646413986218,0.005,40951.0,40948.0,0.668049]
[1646413986663,0.061102,40952.0,40948.0,0.668049]
[1646413986870,0.061102,40952.0,40948.0,0.97738753]
[1646413987665,0.07098787,40957.0,40950.0,0.08777015]
[1646413987666,0.13208287,40957.0,40950.0,0.08777015]
[1646413987865,0.08208287,40957.0,40952.0,0.368049]
[1646413988065,0.07508287,40957.0,40952.0,0.368049]
[1646413988466,0.07508287,40957.0,40953.0,0.368049]
[1646413988664,0.07508287,40957.0,40956.0,0.368049]
[1646413988869,8.028e-05,40962.0,40956.0,0.668049]
[1646413989064,8.028e-05,40962.0,40956.0,0.84021206]
[1646413989266,8.028e-05,40962.0,40957.0,0.08777015]
[1646413989468,8.028e-05,40962.0,40961.0,0.08777015]
[1646413989666,8.028e-05,40962.0,40961.0,0.45581915]
[1646413989866,0.00859547,40963.0,40961.0,0.50581915]
[1646413990067,0.06967947,40963.0,40961.0,0.13777015]
[1646413990309,0.06967947,40963.0,40960.0,0.368049]
[1646413990310,0.06267947,40963.0,40960.0,0.368049]
[1646413990714,0.06267947,40963.0,40961.0,0.13777015]
[1646413990913,0.06267947,40963.0,40961.0,0.12399314]
[1646413991113,0.06267947,40963.0,40961.0,0.03622299]
[1646413991312,0.06267947,40963.0,40959.0,0.3]
[1646413991313,0.39957463,40962.0,40959.0,0.3]
[1646413991509,0.39957463,40962.0,40960.0,0.368049]
[1646413991710,0.39957463,40962.0,40959.0,0.3]
[1646413991910,0.06267947,40963.0,40959.0,0.3]
[1646413991911,0.4622541,40963.0,40959.0,0.3]
[1646413992114,0.62695001,40962.0,40961.0,0.08777015]
[1646413992310,0.39957463,40962.0,40961.0,0.13777015]
[1646413992510,0.39957463,40962.0,40961.0,0.05]
[1646413992711,0.46248051,40963.0,40960.0,0.368049]
[1646413993312,0.46248051,40963.0,40961.0,0.45581915]
[1646413993511,0.46248051,40963.0,40961.0,0.05]
[1646413993512,0.4622541,40963.0,40961.0,0.05]
[1646413993713,0.4622541,40963.0,40962.0,0.368049]
[1646413993912,0.4622541,40963.0,40962.0,0.08777015]
[1646413994370,0.06267947,40963.0,40961.0,0.05]
[1646413994777,0.39957463,40962.0,40957.0,0.05]
[1646413994966,0.65675111,40962.0,40956.0,0.17216306]
[1646413995565,0.65675111,40962.0,40956.0,0.47216306]
[1646413995767,0.06267947,40963.0,40957.0,0.08777015]
[1646413995967,0.06267947,40963.0,40956.0,0.47216306]
[1646413996167,0.0002093,40962.0,40956.0,0.47216306]
[1646413996367,0.122187,40961.0,40956.0,0.47216306]
[1646413996577,0.122187,40961.0,40956.0,0.3]
[1646413996770,0.26945184,40960.0,40955.0,0.03529]
[1646413996970,0.061107,40958.0,40955.0,0.03529]
[1646413997169,2.39788615,40957.0,40955.0,0.03529]
[1646413997568,2.67519728,40957.0,40955.0,0.03529]
[1646413997811,0.15634815,40956.0,40955.0,0.03529]
[1646413998016,0.20544815,40956.0,40955.0,0.03529]
[1646413998815,0.49626716,40956.0,40939.0,0.15540941]
[1646413999016,0.07805019,40954.0,40939.0,0.15540941]
[1646413999214,0.01634829,40953.0,40939.0,0.15540941]
[1646413999414,0.23285426,40949.0,40938.0,0.4846]
[1646413999616,0.061124,40945.0,40939.0,0.00021055]
[1646413999816,0.0491,40944.0,40939.0,0.00021055]
[1646414000021,0.2542818,40943.0,40939.0,0.00021055]
[1646414000216,0.0491,40942.0,40939.0,0.00021055]
[1646414000415,0.01560327,40944.0,40939.0,0.00021055]
[1646414000416,0.0491,40941.0,40939.0,0.00021055]
[1646414000615,0.0491,40940.0,40935.0,0.08777015]
[1646414000817,0.01445607,40942.0,40938.0,0.00021054]
[1646414001016,0.0491,40941.0,40938.0,0.00021054]
[1646414001659,0.110222,40941.0,40938.0,0.00021054]
[1646414001864,0.110222,40941.0,40935.0,0.7502449]
[1646414002165,0.110222,40941.0,40937.0,0.00021047]
[1646414002960,0.110222,40941.0,40935.0,0.43777015]
[1646414003162,0.110222,40941.0,40937.0,0.00021047]
[1646414005169,0.160222,40941.0,40937.0,0.00021047]
[1646414005412,0.110222,40941.0,40934.0,0.13777015]
[1646414005612,0.110222,40941.0,40937.0,0.00021047]
[1646414006713,0.110222,40941.0,40934.0,0.34407586]
[1646414006916,0.110222,40941.0,40937.0,0.00021048]
[1646414007517,0.110222,40941.0,40937.0,0.08798063]
[1646414007723,0.110222,40941.0,40937.0,0.05021048]
[1646414007917,0.110222,40941.0,40937.0,0.05]
[1646414008118,0.110222,40941.0,40937.0,0.00021048]
[1646414008321,0.14432565,40940.0,40937.0,0.00021048]
[1646414008517,0.8991,40939.0,40925.0,0.08777015]
[1646414008718,0.01606404,40938.0,40925.0,0.08777015]
[1646414008917,0.07897073,40934.0,40926.0,0.08777015]
[1646414009165,2.21487692,40928.0,40927.0,0.23488307]
[1646414009367,2.56418554,40928.0,40927.0,0.32265322]
[1646414009568,2.56418554,40928.0,40927.0,0.08777015]
[1646414009767,2.56418554,40928.0,40922.0,0.42225517]
[1646414009969,2.33847844,40928.0,40922.0,0.42225517]
[1646414010371,2.33847844,40928.0,40923.0,0.00021068]
[1646414010568,2.33847844,40928.0,40925.0,0.26691173]
[1646414010967,2.33847844,40928.0,40925.0,0.31691173]
[1646414011968,2.33847844,40928.0,40925.0,0.05]
[1646414012169,2.33847844,40928.0,40924.0,0.00021067]
[1646414012570,0.01423541,40927.0,40922.0,0.35]
[1646414012814,0.01678737,40926.0,40924.0,0.00021068]
[1646414013017,0.122299,40925.0,40924.0,0.00021068]
[1646414013816,0.122299,40925.0,40920.0,0.41]
[1646414014016,0.0491,40924.0,40922.0,0.00021052]
[1646414014217,0.28863915,40923.0,40922.0,0.00021052]
[1646414014416,0.0491,40923.0,40922.0,0.00021052]
[1646414015014,0.22103388,40923.0,40920.0,0.41]
[1646414015215,0.25574599,40922.0,40920.0,0.41021052]
[1646414015518,0.0491,40921.0,40920.0,0.41021052]
[1646414015915,0.110263,40921.0,40920.0,0.00021052]
[1646414016116,0.10966462,40921.0,40920.0,0.00021052]
[1646414016316,0.10966462,40921.0,40912.0,0.3]
[1646414016563,0.10966462,40921.0,40918.0,0.00021053]
[1646414017463,0.1589732,40920.0,40911.0,0.34917678]
[1646414017664,0.122332,40918.0,40917.0,0.00021055]
[1646414017861,0.171432,40918.0,40917.0,0.00021055]
[1646414018665,0.171432,40918.0,40911.0,0.34917678]
[1646414018863,0.171432,40918.0,40915.0,0.00021055]
[1646414019867,0.061172,40915.0,40906.0,0.3]
[1646414020065,0.061172,40915.0,40914.0,0.00021055]
[1646414020532,0.33178192,40915.0,40914.0,0.00021055]
[1646414020740,0.0491,40915.0,40914.0,0.00021055]
[1646414021032,0.0491,40915.0,40906.0,0.45]
[1646414021233,0.061168,40913.0,40912.0,0.00021056]
[1646414021435,0.110268,40913.0,40912.0,0.00021056]
[1646414021733,0.160268,40913.0,40912.0,0.00021056]
[1646414022333,0.160268,40913.0,40906.0,0.45]
[1646414022533,0.160268,40913.0,40910.0,0.00013107]
[1646414022734,0.20839919,40912.0,40910.0,0.00013107]
[1646414022932,0.160268,40913.0,40910.0,0.00013107]
[1646414022933,0.0491,40911.0,40910.0,0.00013107]
[1646414023334,0.06378515,40911.0,40910.0,0.00013107]
[1646414023533,0.061177,40910.0,40906.0,0.2]
[1646414023734,0.0491,40909.0,40908.0,0.00013832]
[1646414023934,0.17146,40909.0,40908.0,0.00013832]
[1646414024567,0.22146,40909.0,40906.0,0.2]
[1646414024765,0.061178,40908.0,40906.0,0.2]
[1646414024964,0.0491,40907.0,40906.0,0.20013833]
[1646414025164,0.0491,40907.0,40906.0,0.15013833]
[1646414025969,0.0491,40907.0,40906.0,0.15]
[1646414026367,0.0491,40907.0,40906.0,0.2]
[1646414026566,0.29488783,40907.0,40906.0,0.2]
[1646414026766,0.0491,40907.0,40906.0,0.2]
[1646414031123,0.0491,40907.0,40906.0,0.15]
[1646414031316,0.0491,40907.0,40906.0,0.08765145]
[1646414032170,0.28290355,40907.0,40906.0,0.08765145]
[1646414032374,1.411197,40906.0,40904.0,0.00021078]